fUSD/lending_fUSD_20250823
["ID","MTS","AMOUNT","RATE_DAILY","PERIOD"]
[380956268,1755912738612,-577.94,0.0001589,2]
[380956269,1755912738621,-400.0,0.0001589,2]
[380956270,1755912738631,-400.0,0.0001589,2]
[380956271,1755912738640,-637.7,0.0001589,2]
[380956272,1755912738649,-423.83,0.0001589,2]
[380956273,1755912738659,-400.0,0.0001589,2]
[380956274,1755912738668,-873.47,0.0001589,2]
[380956275,1755912738678,-459.29,0.0001589,2]
[380956276,1755912738688,-571.62,0.0001589,2]
[380956277,1755912738697,-409.95,0.0001589,2]
[380956278,1755912738707,-1704.41,0.0001589,2]
[380956279,1755912738716,-549.98,0.0001589,2]
[380956280,1755912738727,-400.0,0.0001589,2]
[380956281,1755912738737,-400.0,0.0001589,2]
[380956282,1755912738747,-400.0,0.0001589,2]
[380956283,1755912738756,-400.0,0.0001589,2]
[380956284,1755912738766,-400.0,0.0001589,2]
[380956285,1755912738776,-531.47,0.0001589,2]
[380956286,1755912738785,-456.18,0.0001589,2]
[380956287,1755912738795,-400.0,0.0001589,2]
[380956288,1755912738804,-400.0,0.0001589,2]
[380956289,1755912738814,-400.0,0.0001589,2]
[380956290,1755912738824,-890.29,0.0001589,2]
[380956291,1755912738833,-406.1,0.0001589,2]
[380956292,1755912738842,-400.0,0.0001589,2]
[380956293,1755912738852,-400.0,0.0001589,2]
[380956294,1755912738862,-400.0,0.0001589,2]
[380956295,1755912738872,-421.32,0.0001589,2]
[380956296,1755912738881,-400.0,0.0001589,2]
[380956297,1755912738891,-478.43,0.0001589,2]
[380956298,1755912738901,-400.0,0.0001589,2]
[380956299,1755912739131,-487.04,0.0001589,2]
[380956300,1755912739141,-595.85,0.0001589,2]
[380956301,1755912739151,-291.32,0.0001589,2]
[380956302,1755912739160,-542.43,0.0001589,2]
[380956303,1755912739170,-510.81,0.0001589,2]
[380956304,1755912739179,-451.04,0.0001589,2]
[380956305,1755912739189,-400.0,0.0001589,2]
[380956306,1755912739198,-477.02,0.0001589,2]
[380956307,1755912739208,-667.8,0.0001589,2]
[380956308,1755912739218,-400.0,0.0001589,2]
[380956309,1755912739228,-400.0,0.0001589,2]
[380956310,1755912739238,-754.76,0.0001589,2]
[380956311,1755912739248,-400.0,0.0001589,2]
[380956312,1755912739258,-1030.1,0.0001589,2]
[380956313,1755912739268,-510.89,0.0001589,2]
[380956314,1755912739278,-400.0,0.0001589,2]
[380956315,1755912739288,-436.99,0.0001589,2]
[380956316,1755912739298,-657.25,0.0001589,2]
[380956317,1755912739307,-400.0,0.0001589,2]
[380956318,1755912739317,-400.0,0.0001589,2]
[380956319,1755912739327,-417.45,0.0001589,2]
[380956320,1755912739336,-400.0,0.0001589,2]
[380956321,1755912739346,-400.0,0.0001589,2]
[380956322,1755912739355,-1067.81,0.0001589,2]
[380956323,1755912739365,-544.73,0.0001589,2]
[380956324,1755912739374,-400.0,0.0001589,2]
[380956325,1755912739387,-400.0,0.0001589,2]
[380956326,1755912739401,-578.42,0.0001589,2]
[380956327,1755912739410,-786.01,0.0001589,2]
[380956328,1755912739420,-400.0,0.0001589,2]
[380956329,1755912739429,-1145.67,0.0001589,2]
[380956330,1755912739438,-624.95,0.0001589,2]
[380956331,1755912739448,-400.0,0.0001589,2]
[380956332,1755912739457,-439.98,0.0001589,2]
[380956333,1755912739466,-400.0,0.0001589,2]
[380956334,1755912739476,-734.24,0.0001589,2]
[380956335,1755912739486,-400.0,0.0001589,2]
[380956336,1755912739496,-400.0,0.0001589,2]
[380956337,1755912739506,-716.27,0.0001589,2]
[380956338,1755912739516,-400.0,0.0001589,2]
[380956339,1755912739526,-400.0,0.0001589,2]
[380956340,1755912739536,-677.21,0.0001589,2]
[380956341,1755912739546,-400.0,0.0001589,2]
[380956342,1755912739555,-400.0,0.0001589,2]
[380956343,1755912739564,-400.0,0.0001589,2]
[380956344,1755912739574,-503.77,0.0001589,2]
[380956345,1755912739584,-400.0,0.0001589,2]
[380956346,1755912739593,-831.56,0.0001589,2]
[380956347,1755912739603,-651.98,0.0001589,2]
[380956348,1755912739612,-742.35,0.0001589,2]
[380956349,1755912739622,-541.87,0.0001589,2]
[380956350,1755912739632,-400.0,0.0001589,2]
[380956351,1755912739641,-400.0,0.0001589,2]
[380956352,1755912739650,-462.17,0.0001589,2]
[380956353,1755912739660,-400.0,0.0001589,2]
[380956354,1755912739670,-422.39,0.0001589,2]
[380956355,1755912739679,-400.0,0.0001589,2]
[380956356,1755912739688,-400.0,0.0001589,2]
[380956357,1755912739698,-535.7,0.0001589,2]
[380956358,1755912739707,-400.0,0.0001589,2]
[380956359,1755912739717,-601.7,0.0001589,2]
[380956360,1755912739727,-598.88,0.0001589,2]
[380956361,1755912739737,-400.0,0.0001589,2]
[380956362,1755912739746,-729.0,0.0001589,2]
[380956363,1755912739756,-400.0,0.0001589,2]
[380956364,1755912739766,-400.0,0.0001589,2]
[380956365,1755912739775,-482.06,0.0001589,2]
[380956366,1755912739785,-648.16,0.0001589,2]
[380956367,1755912739794,-560.98,0.0001589,2]
[380956368,1755912739804,-400.0,0.0001589,2]
[380956369,1755912739813,-581.45,0.0001589,2]
[380956370,1755912739822,-485.12,0.0001589,2]
[380956371,1755912739832,-400.0,0.0001589,2]
[380956372,1755912739841,-463.13,0.0001589,2]
[380956373,1755912739851,-607.66,0.0001589,2]
[380956374,1755912739860,-400.0,0.0001589,2]
[380956375,1755912739870,-400.0,0.0001589,2]
[380956376,1755912739879,-483.72,0.0001589,2]
[380956377,1755912739892,-506.32,0.0001589,2]
[380956378,1755912739901,-657.0,0.0001589,2]
[380956379,1755912739912,-460.21,0.0001589,2]
[380956380,1755912739921,-664.59,0.0001589,2]
[380956381,1755912739930,-400.0,0.0001589,2]
[380956382,1755912739940,-518.18,0.0001589,2]
[380956383,1755912739950,-548.04,0.0001589,2]
[380956384,1755912739960,-623.23,0.0001589,2]
[380956385,1755912739969,-490.94,0.0001589,2]
[380956386,1755912739980,-400.0,0.0001589,2]
[380956387,1755912739989,-407.86,0.0001589,2]
[380956388,1755912739999,-538.71,0.0001589,2]
[380956389,1755912740008,-492.11,0.0001589,2]
[380956390,1755912740018,-585.32,0.0001589,2]
[380956391,1755912740028,-704.8,0.0001589,2]
[380956392,1755912740037,-419.51,0.0001589,2]
[380956393,1755912740047,-536.25,0.0001589,2]
[380956394,1755912740057,-400.0,0.0001589,2]
[380956395,1755912740066,-416.08,0.0001589,2]
[380956396,1755912740076,-400.0,0.0001589,2]
[380956397,1755912740085,-400.0,0.0001589,2]
[380956398,1755912740095,-552.15,0.0001589,2]
[380956399,1755912740104,-685.75,0.0001589,2]
[380956400,1755912740113,-400.0,0.0001589,2]
[380956401,1755912740123,-400.0,0.0001589,2]
[380956402,1755912740133,-1265.94,0.0001589,2]
[380956403,1755912740142,-475.58,0.0001589,2]
[380956404,1755912740152,-400.0,0.0001589,2]
[380956405,1755912740162,-400.0,0.0001589,2]
[380956406,1755912740172,-433.85,0.0001589,2]
[380956407,1755912740181,-400.0,0.0001589,2]
[380956408,1755912740191,-400.0,0.0001589,2]
[380956409,1755912740201,-493.99482512,0.0001589,2]
[380956410,1755912740211,-400.0,0.0001589,2]
[380956411,1755912740221,-400.0,0.0001589,2]
[380956412,1755912740231,-413.22224404,0.0001589,2]
[380956413,1755912740241,-428.36,0.0001589,2]
[380956414,1755912740252,-427.61,0.0001589,2]
[380956415,1755912740261,-543.91,0.0001589,2]
[380956416,1755912740271,-836.08895503,0.0001589,2]
[380956417,1755912740280,-400.0,0.0001589,2]
[380956418,1755912740290,-400.0,0.0001589,2]
[380956419,1755912740300,-763.66,0.0001589,2]
[380956420,1755912740310,-400.0,0.0001589,2]
[380956421,1755912740320,-400.0,0.0001589,2]
[380956422,1755912740329,-400.0,0.0001589,2]
[380956423,1755912740339,-400.0,0.0001589,2]
[380956424,1755912740349,-482.08,0.0001589,2]
[380956425,1755912740358,-552.38,0.0001589,2]
[380956426,1755912740368,-793.95,0.0001589,2]
[380956427,1755912740378,-400.0,0.0001589,2]
[380956428,1755912740391,-400.0,0.0001589,2]
[380956429,1755912740400,-400.0,0.0001589,2]
[380956430,1755912740410,-476.99,0.0001589,2]
[380956431,1755912740421,-400.0,0.0001589,2]
[380956432,1755912740433,-400.0,0.0001589,2]
[380956433,1755912740443,-400.0,0.0001589,2]
[380956434,1755912740453,-772.08,0.0001589,2]
[380956435,1755912740462,-607.86,0.0001589,2]
[380956436,1755912740472,-400.0,0.0001589,2]
[380956437,1755912740481,-577.68,0.0001589,2]
[380956438,1755912740492,-446.17,0.0001589,2]
[380956439,1755912740501,-499.75,0.0001589,2]
[380956440,1755912740511,-543.86,0.0001589,2]
[380956441,1755912740520,-707.33,0.0001589,2]
[380956442,1755912740530,-156.17461,0.0001589,2]
[380956443,1755912740540,-475.34,0.0001589,2]
[380956444,1755912740549,-602.1,0.0001589,2]
[380956445,1755912740558,-400.0,0.0001589,2]
[380956446,1755912740568,-496.62,0.0001589,2]
[380956447,1755912740577,-480.32,0.0001589,2]
[380956448,1755912740586,-752.86,0.0001589,2]
[380956449,1755912740595,-400.0,0.0001589,2]
[380956450,1755912740605,-400.0,0.0001589,2]
[380956451,1755912740614,-400.0,0.0001589,2]
[380956452,1755912740623,-400.0,0.0001589,2]
[380956453,1755912740632,-633.62,0.0001589,2]
[380956454,1755912740642,-400.0,0.0001589,2]
[380956455,1755912740652,-400.0,0.0001589,2]
[380956456,1755912740661,-400.0,0.0001589,2]
[380956457,1755912740671,-400.0,0.0001589,2]
[380956458,1755912740680,-560.58,0.0001589,2]
[380956459,1755912740689,-614.22,0.0001589,2]
[380956460,1755912740698,-400.0,0.0001589,2]
[380956461,1755912740708,-428.79,0.0001589,2]
[380956462,1755912740717,-416.01,0.0001589,2]
[380956463,1755912740727,-400.0,0.0001589,2]
[380956464,1755912740736,-400.0,0.0001589,2]
[380956465,1755912740746,-425.3,0.0001589,2]
[380956466,1755912740755,-400.0,0.0001589,2]
[380956467,1755912740765,-400.0,0.0001589,2]
[380956468,1755912740774,-508.68,0.0001589,2]
[380956469,1755912740783,-535.36,0.0001589,2]
[380956470,1755912740793,-400.0,0.0001589,2]
[380956471,1755912740802,-193.17723,0.0001589,2]
[380956472,1755912740812,-470.91,0.0001589,2]
[380956473,1755912740821,-418.5,0.0001589,2]
[380956474,1755912740831,-400.0,0.0001589,2]
[380956475,1755912740841,-400.0,0.0001589,2]
[380956476,1755912740850,-747.8,0.0001589,2]
[380956477,1755912740860,-400.0,0.0001589,2]
[380956478,1755912740869,-433.94,0.0001589,2]
[380956479,1755912740879,-400.0,0.0001589,2]
[380956480,1755912740888,-400.0,0.0001589,2]
[380956481,1755912740897,-400.0,0.0001589,2]
[380956482,1755912740907,-400.0,0.0001589,2]
[380956483,1755912740917,-472.48,0.0001589,2]
[380956484,1755912740926,-1000.0,0.0001589,2]
[380956485,1755912740936,-400.0,0.0001589,2]
[380956486,1755912740945,-400.0,0.0001589,2]
[380956487,1755912740955,-855.010025,0.0001589,2]
[380956488,1755912740964,-400.0,0.0001589,2]
[380956489,1755912740974,-400.0,0.0001589,2]
[380956490,1755912740984,-631.75,0.0001589,2]
[380956491,1755912740993,-400.0,0.0001589,2]
[380956492,1755912741003,-400.0,0.0001589,2]
[380956493,1755912741013,-400.0,0.0001589,2]
[380956494,1755912741022,-479.25,0.0001589,2]
[380956495,1755912741031,-737.35,0.0001589,2]
[380956496,1755912741041,-473.06,0.0001589,2]
[380956497,1755912741051,-400.0,0.0001589,2]
[380956498,1755912741061,-400.0,0.0001589,2]
[380956499,1755912741071,-400.0,0.0001589,2]
[380956500,1755912741080,-464.53,0.0001589,2]
[380956501,1755912741089,-400.0,0.0001589,2]
[380956502,1755912741099,-451.38,0.0001589,2]
[380956503,1755912741108,-605.41,0.0001589,2]
[380956504,1755912741126,-763.68,0.0001589,2]
[380956505,1755912741138,-400.0,0.0001589,2]
[380956506,1755912741149,-400.0,0.0001589,2]
[380956507,1755912741159,-400.0,0.0001589,2]
[380956508,1755912741169,-400.0,0.0001589,2]
[380956509,1755912741179,-400.0,0.0001589,2]
[380956510,1755912741189,-400.0,0.0001589,2]
[380956511,1755912741200,-496.31,0.0001589,2]
[380956512,1755912741211,-437.52,0.0001589,2]
[380956513,1755912741221,-400.0,0.0001589,2]
[380956514,1755912741233,-400.0,0.0001589,2]
[380956515,1755912741243,-400.0,0.0001589,2]
[380956516,1755912741253,-1076.1,0.0001589,2]
[380956517,1755912741263,-517.63,0.0001589,2]
[380956518,1755912741274,-400.0,0.0001589,2]
[380956519,1755912741284,-531.82,0.0001589,2]
[380956520,1755912741294,-400.0,0.0001589,2]
[380956521,1755912741304,-400.0,0.0001589,2]
[380956522,1755912741315,-538.24,0.0001589,2]
[380956523,1755912741325,-599.57,0.0001589,2]
[380956524,1755912741335,-400.0,0.0001589,2]
[380956525,1755912741346,-578.64,0.0001589,2]
[380956526,1755912741356,-400.0,0.0001589,2]
[380956527,1755912741366,-481.87,0.0001589,2]
[380956528,1755912741376,-876.45,0.0001589,2]
[380956529,1755912741389,-596.46,0.0001589,2]
[380956530,1755912741399,-400.0,0.0001589,2]
[380956531,1755912741410,-750.69,0.0001589,2]
[380956532,1755912741421,-400.0,0.0001589,2]
[380956533,1755912741431,-483.91,0.0001589,2]
[380956534,1755912741441,-429.94,0.0001589,2]
[380956535,1755912741451,-2560.03,0.0001589,2]
[380956536,1755912741461,-583.44,0.0001589,2]
[380956537,1755912741471,-400.0,0.0001589,2]
[380956538,1755912741482,-400.0,0.0001589,2]
[380956539,1755912741493,-511.98,0.0001589,2]
[380956540,1755912741503,-165.091098,0.0001589,2]
[380956541,1755912741512,-412.65,0.0001589,2]
[380956542,1755912741523,-400.0,0.0001589,2]
[380956543,1755912741533,-714.55,0.0001589,2]
[380956544,1755912741543,-400.0,0.0001589,2]
[380956545,1755912741554,-466.47,0.0001589,2]
[380956546,1755912741564,-400.0,0.0001589,2]
[380956547,1755912741704,-789.4,0.0001589,2]
[380956548,1755912741713,-483.0,0.0001589,2]
[380956549,1755912741722,-638.96,0.0001589,2]
[380956550,1755912741732,-626.45,0.0001589,2]
[380956551,1755912741741,-411.07,0.0001589,2]
[380956552,1755912741751,-400.0,0.0001589,2]
[380956553,1755912741759,-459.86,0.0001589,2]
[380956554,1755912741768,-590.56,0.0001589,2]
[380956555,1755912741777,-7170.55,0.0001589,2]
[380956556,1755912741788,-400.0,0.0001589,2]
[380956557,1755912741798,-798.6,0.0001589,2]
[380956558,1755912741808,-489.74,0.0001589,2]
[380956559,1755912741818,-755.36,0.0001589,2]
[380956560,1755912741828,-414.4,0.0001589,2]
[380956561,1755912741839,-2114.53,0.0001589,2]
[380956562,1755912741848,-556.35,0.0001589,2]
[380956563,1755912741858,-400.0,0.0001589,2]
[380956564,1755912741868,-522.88,0.0001589,2]
[380956565,1755912741878,-400.0,0.0001589,2]
[380956566,1755912741888,-400.0,0.0001589,2]
[380956567,1755912741898,-400.0,0.0001589,2]
[380956568,1755912741910,-2594.59,0.0001589,2]
[380956569,1755912741920,-400.0,0.0001589,2]
[380956570,1755912741930,-446.5,0.0001589,2]
[380956571,1755912741940,-529.92,0.0001589,2]
[380956572,1755912741949,-705.67,0.0001589,2]
[380956573,1755912741959,-896.87,0.0001589,2]
[380956574,1755912741969,-1094.77,0.0001589,2]
[380956575,1755912741981,-400.0,0.0001589,2]
[380956576,1755912741990,-400.0,0.0001589,2]
[380956577,1755912741999,-741.74,0.0001589,2]
[380956578,1755912742008,-869.76,0.0001589,2]
[380956579,1755912742018,-418.69,0.0001589,2]
[380956580,1755912742028,-400.0,0.0001589,2]
[380956581,1755912742038,-400.0,0.0001589,2]
[380956582,1755912742048,-562.13,0.0001589,2]
[380956583,1755912742057,-437.77,0.0001589,2]
[380956584,1755912742067,-1048.91,0.0001589,2]
[380956585,1755912742077,-541.27,0.0001589,2]
[380956586,1755912742086,-723.99,0.0001589,2]
[380956587,1755912742095,-400.0,0.0001589,2]
[380956588,1755912742106,-400.0,0.0001589,2]
[380956589,1755912742116,-400.0,0.0001589,2]
[380956590,1755912742125,-614.11,0.0001589,2]
[380956591,1755912742134,-4903.23,0.0001589,2]
[380956592,1755912742143,-963.36,0.0001589,2]
[380956593,1755912742157,-685.08,0.0001589,2]
[380956594,1755912742167,-400.0,0.0001589,2]
[380956595,1755912742177,-508.77,0.0001589,2]
[380956596,1755912742187,-530.85,0.0001589,2]
[380956597,1755912742197,-956.53,0.0001589,2]
[380956598,1755912742210,-400.0,0.0001589,2]
[380956599,1755912742220,-400.0,0.0001589,2]
[380956600,1755912742230,-690.94,0.0001589,2]
[380956601,1755912742239,-781.78,0.0001589,2]
[380956602,1755912742250,-516.0,0.0001589,2]
[380956603,1755912742260,-407.82,0.0001589,2]
[380956604,1755912742270,-400.0,0.0001589,2]
[380956605,1755912742279,-400.0,0.0001589,2]
[380956606,1755912742289,-573.49,0.0001589,2]
[380956607,1755912742300,-2566.25,0.0001589,2]
[380956608,1755912742310,-217.24,0.0001589,2]
[380956609,1755912742319,-400.0,0.0001589,2]
[380956610,1755912742329,-548.91,0.0001589,2]
[380956611,1755912742339,-400.0,0.0001589,2]
[380956612,1755912742348,-468.96,0.0001589,2]
[380956613,1755912742357,-947.84,0.0001589,2]
[380956614,1755912742367,-1155.0,0.0001589,2]
[380956615,1755912742377,-1053.52,0.0001589,2]
[380956616,1755912742389,-659.68,0.0001589,2]
[380956617,1755912742399,-400.0,0.0001589,2]
[380956618,1755912742408,-691.7,0.0001589,2]
[380956619,1755912742418,-557.81,0.0001589,2]
[380956620,1755912742427,-1327.17,0.0001589,2]
[380956621,1755912742437,-719.87,0.0001589,2]
[380956622,1755912742447,-621.05,0.0001589,2]
[380956623,1755912742457,-532.88,0.0001589,2]
[380956624,1755912742468,-400.0,0.0001589,2]
[380956625,1755912742478,-482.24,0.0001589,2]
[380956626,1755912742488,-811.77,0.0001589,2]
[380956627,1755912742497,-786.36,0.0001589,2]
[380956628,1755912742507,-825.64,0.0001589,2]
[380956629,1755912742516,-448.05,0.0001589,2]
[380956630,1755912742525,-400.0,0.0001589,2]
[380956631,1755912742535,-508.4,0.0001589,2]
[380956632,1755912742545,-400.0,0.0001589,2]
[380956633,1755912742555,-471.12,0.0001589,2]
[380956634,1755912742569,-1160.25,0.0001589,2]
[380956635,1755912742579,-522.09,0.0001589,2]
[380956636,1755912742589,-478.08,0.0001589,2]
[380956637,1755912742599,-400.0,0.0001589,2]
[380956638,1755912742608,-400.0,0.0001589,2]
[380956639,1755912742618,-413.45,0.0001589,2]
[380956640,1755912742627,-400.01,0.0001589,2]
[380956641,1755912742637,-1658.24,0.0001589,2]
[380956642,1755912742646,-876.0,0.0001589,2]
[380956643,1755912742656,-928.99,0.0001589,2]
[380956644,1755912742666,-1082.57,0.0001589,2]
[380956645,1755912742675,-599.68,0.0001589,2]
[380956646,1755912742685,-535.34,0.0001589,2]
[380956647,1755912742695,-400.0,0.0001589,2]
[380956648,1755912742705,-581.91,0.0001589,2]
[380956649,1755912742714,-576.13,0.0001589,2]
[380956650,1755912742724,-808.82,0.0001589,2]
[380956651,1755912742734,-704.93,0.0001589,2]
[380956652,1755912742744,-629.77,0.0001589,2]
[380956653,1755912742753,-458.74,0.0001589,2]
[380956654,1755912742763,-677.9,0.0001589,2]
[380956655,1755912742773,-909.17,0.0001589,2]
[380956656,1755912742783,-757.81,0.0001589,2]
[380956657,1755912742793,-400.0,0.0001589,2]
[380956658,1755912742802,-412.49,0.0001589,2]
[380956659,1755912742812,-1628.12,0.0001589,2]
[380956660,1755912742821,-562.56,0.0001589,2]
[380956661,1755912742831,-400.0,0.0001589,2]
[380956662,1755912742841,-556.37,0.0001589,2]
[380956663,1755912742851,-901.46,0.0001589,2]
[380956664,1755912742861,-554.4,0.0001589,2]
[380956665,1755912742870,-699.23,0.0001589,2]
[380956666,1755912742880,-442.39,0.0001589,2]
[380956667,1755912742890,-627.55,0.0001589,2]
[380956668,1755912742900,-400.0,0.0001589,2]
[380956669,1755912742910,-475.41,0.0001589,2]
[380956670,1755912742920,-493.66,0.0001589,2]
[380956671,1755912742930,-400.0,0.0001589,2]
[380956672,1755912742939,-618.33,0.0001589,2]
[380956673,1755912742949,-400.0,0.0001589,2]
[380956674,1755912742958,-400.0,0.0001589,2]
[380956675,1755912742969,-1043.76,0.0001589,2]
[380956676,1755912742979,-165.091095,0.0001589,2]
[380956677,1755912742988,-400.0,0.0001589,2]
[380956678,1755912742998,-400.0,0.0001589,2]
[380956679,1755912743008,-415.82,0.0001589,2]
[380956680,1755912743018,-491.94,0.0001589,2]
[380956681,1755912743028,-400.0,0.0001589,2]
[380956682,1755912743037,-682.29,0.0001589,2]
[380956683,1755912743047,-427.73,0.0001589,2]
[380956684,1755912743057,-501.87,0.0001589,2]
[380956685,1755912743066,-537.21,0.0001589,2]
[380956686,1755912743076,-640.17,0.0001589,2]
[380956687,1755912743086,-468.97,0.0001589,2]
[380956688,1755912743096,-568.93,0.0001589,2]
[380956689,1755912743105,-577.38,0.0001589,2]
[380956690,1755912743115,-620.18,0.0001589,2]
[380956691,1755912743125,-1005.26,0.0001589,2]
[380956692,1755912743135,-457.02,0.0001589,2]
[380956693,1755912743145,-400.0,0.0001589,2]
[380956694,1755912743155,-773.99,0.0001589,2]
[380956695,1755912743165,-400.0,0.0001589,2]
[380956696,1755912743175,-933.58,0.0001589,2]
[380956697,1755912743184,-400.0,0.0001589,2]
[380956698,1755912743194,-400.0,0.0001589,2]
[380956699,1755912743204,-400.0,0.0001589,2]
[380956700,1755912743213,-400.0,0.0001589,2]
[380956701,1755912743223,-400.0,0.0001589,2]
[380956702,1755912743234,-407.11,0.0001589,2]
[380956703,1755912743244,-610.39,0.0001589,2]
[380956704,1755912743258,-646.19,0.0001589,2]
[380956705,1755912743268,-400.0,0.0001589,2]
[380956706,1755912743279,-431.04,0.0001589,2]
[380956707,1755912743295,-605.05,0.0001589,2]
[380956708,1755912743306,-400.0,0.0001589,2]
[380956709,1755912743317,-938.83,0.0001589,2]
[380956710,1755912743328,-664.71,0.0001589,2]
[380956711,1755912743339,-490.42,0.0001589,2]
[380956712,1755912743350,-546.05,0.0001589,2]
[380956713,1755912743360,-1070.54,0.0001589,2]
[380956714,1755912743371,-410.97,0.0001589,2]
[380956715,1755912743383,-570.73,0.0001589,2]
[380956716,1755912743395,-665.32,0.0001589,2]
[380956717,1755912743406,-716.24,0.0001589,2]
[380956718,1755912743416,-400.0,0.0001589,2]
[380956719,1755912743427,-400.0,0.0001589,2]
[380956720,1755912743437,-697.95,0.0001589,2]
[380956721,1755912743448,-400.0,0.0001589,2]
[380956722,1755912743459,-731.6,0.0001589,2]
[380956723,1755912743470,-509.97,0.0001589,2]
[380956724,1755912743480,-1401.51,0.0001589,2]
[380956725,1755912743491,-400.0,0.0001589,2]
[380956726,1755912743502,-474.27,0.0001589,2]
[380956727,1755912743513,-1143.48,0.0001589,2]
[380956728,1755912743523,-400.0,0.0001589,2]
[380956729,1755912743534,-633.21,0.0001589,2]
[380956730,1755912743545,-1150.35,0.0001589,2]
[380956731,1755912743555,-551.73,0.0001589,2]
[380956732,1755912743566,-400.0,0.0001589,2]
[380956733,1755912743576,-803.81,0.0001589,2]
[380956734,1755912743587,-400.0,0.0001589,2]
[380956735,1755912743597,-709.31,0.0001589,2]
[380956736,1755912743608,-507.56,0.0001589,2]
[380956737,1755912743618,-1049.21,0.0001589,2]
[380956738,1755912743628,-400.0,0.0001589,2]
[380956739,1755912743639,-400.0,0.0001589,2]
[380956740,1755912743649,-870.96,0.0001589,2]
[380956741,1755912743659,-743.59,0.0001589,2]
[380956742,1755912743670,-599.05,0.0001589,2]
[380956743,1755912743680,-640.94,0.0001589,2]
[380956744,1755912743691,-878.26,0.0001589,2]
[380956745,1755912743702,-400.0,0.0001589,2]
[380956746,1755912743713,-518.56,0.0001589,2]
[380956747,1755912743723,-1743.04,0.0001589,2]
[380956748,1755912743733,-784.45,0.0001589,2]
[380956749,1755912743744,-671.68,0.0001589,2]
[380956750,1755912743754,-983.76,0.0001589,2]
[380956751,1755912743764,-538.86,0.0001589,2]
[380956752,1755912743775,-939.87,0.0001589,2]
[380956753,1755912743785,-582.18,0.0001589,2]
[380956754,1755912743795,-400.0,0.0001589,2]
[380956755,1755912743806,-400.0,0.0001589,2]
[380956756,1755912743817,-839.71,0.0001589,2]
[380956757,1755912743827,-1021.93,0.0001589,2]
[380956758,1755912743838,-400.0,0.0001589,2]
[380956759,1755912743848,-706.05,0.0001589,2]
[380956760,1755912743859,-890.17,0.0001589,2]
[380956761,1755912743870,-1278.62,0.0001589,2]
[380956762,1755912743881,-527.2,0.0001589,2]
[380956763,1755912743892,-649.66,0.0001589,2]
[380956764,1755912743902,-400.0,0.0001589,2]
[380956765,1755912743913,-634.12,0.0001589,2]
[380956766,1755912743923,-784.4,0.0001589,2]
[380956767,1755912743934,-726.51,0.0001589,2]